bitfinex-derivatives/quotes_SOLF0:USTF0_20250520
["timestamp","ask_amount","ask_price","bid_price","bid_amount"]
[1747703968169,5.9606,167.71,167.7,0.03629874]
[1747703970167,0.04378762,167.74,167.7,0.03629874]
[1747703970369,2.0162,167.84,167.71,63.78]
[1747703970570,1.9416,167.85,167.72,4.0719]
[1747703970765,1.9416,167.85,167.74,10.24971489]
[1747703970971,2.0162,167.88,167.75,63.78]
[1747703971463,0.04324841,167.83,167.8,0.03958886]
[1747703971661,0.0423853,167.83,167.8,0.03958886]
[1747703971864,63.78,167.9,167.85,5.9556]
[1747703972067,63.78,167.9,167.79,65.8549]
[1747703972264,5.9549,167.88,167.82,5.9567]
[1747703972465,63.78,167.9,167.79,65.8549]
[1747703972664,63.78,167.9,167.74,10.24971489]
[1747703972867,0.04498568,167.84,167.8,0.03878243]
[1747703973067,63.82498568,167.84,167.8,0.03878243]
[1747703973469,5.9571,167.81,167.8,0.03878243]
[1747703975674,5.958,167.79,167.74,5.9595]
[1747703976066,63.78,167.8,167.74,5.9595]
[1747703976476,63.78,167.8,167.71,2.13916939]
[1747703976677,0.04087397,167.77,167.74,0.04104969]
[1747703977676,63.78,167.87,167.74,0.04104969]
[1747703977870,63.78,167.87,167.73,63.78]
[1747703978073,69.7351,167.87,167.73,63.78]
[1747703978473,0.03905469,167.82,167.78,0.03807207]
[1747703978670,0.03905469,167.82,167.81,5.9571]
[1747703979477,63.78,167.87,167.84,5.9558]
[1747703979677,5.9543,167.89,167.84,5.9558]
[1747703980175,5.9543,167.89,167.85,5.9556]
[1747703980376,5.99305068,167.89,167.85,5.9974296]
[1747703981078,0.03875068,167.89,167.85,5.9974296]
[1747703982179,0.03875068,167.89,167.85,0.0418296]
[1747703982379,5.99305068,167.89,167.85,0.0418296]
[1747703982878,0.03875068,167.89,167.85,0.0418296]
[1747703983881,0.03875068,167.89,167.85,5.9973296]
[1747703984073,0.03875068,167.89,167.85,0.0418296]
[1747703984982,0.03875068,167.89,167.86,5.9552]
[1747703985275,0.03875068,167.89,167.85,0.0418296]
[1747703985482,0.03875068,167.89,167.85,5.9972296]
[1747703985774,0.03875068,167.89,167.85,0.0418296]
[1747703986083,0.03875068,167.89,167.86,5.9553]
[1747703986577,0.03875068,167.89,167.85,5.9974296]
[1747703986981,0.03875068,167.89,167.85,0.0418296]
[1747703987181,0.03875068,167.89,167.86,5.9552]
[1747703987573,5.99325068,167.89,167.85,0.0418296]
[1747703988483,0.03875068,167.89,167.85,0.0418296]
[1747703988981,5.9547,167.88,167.85,0.0418296]
[1747703989280,0.03875068,167.89,167.85,0.0418296]
[1747703990681,0.03875068,167.89,167.86,5.9552]
[1747703990874,0.03875068,167.89,167.85,0.0418296]
[1747703991087,5.9547,167.88,167.85,0.0418296]
[1747703991380,0.03875068,167.89,167.85,0.0418296]
[1747703991881,0.03875068,167.89,167.75,2.0879]
[1747703992082,10.24971489,167.89,167.75,2.0879]
[1747703992278,10.24971489,167.89,167.74,66.74187272]
[1747703992483,5.9575,167.8,167.74,66.74187272]
[1747703992781,5.9575,167.8,167.74,2.98187272]
[1747703993084,5.99922419,167.8,167.76,8.24020575]
[1747703993283,0.04172419,167.8,167.76,2.28140575]
[1747703994386,0.04172419,167.8,167.76,0.04547633]
[1747703994585,0.04172419,167.8,167.78,5.9579]
[1747703996488,0.04172419,167.8,167.79,5.9578]
[1747704001698,0.04172419,167.8,167.76,0.04547633]
[1747704001985,63.76172419,167.8,167.76,0.04547633]
[1747704002181,5.9579,167.79,167.76,0.04547633]
[1747704002382,63.76172419,167.8,167.76,0.04547633]
[1747704004393,5.9585,167.77,167.76,0.04547633]
[1747704004794,63.76172419,167.8,167.73,2.23592942]
[1747704004997,5.9596,167.74,167.73,2.23592942]
[1747704005292,63.74,167.74,167.7,2.98187272]
[1747704005883,63.78325648,167.74,167.7,0.04452317]
[1747704006494,63.78325648,167.74,167.71,5.9604]
[1747704006897,0.04325648,167.74,167.7,0.04452317]
[1747704008996,0.04325648,167.74,167.7,6.00542317]
[1747704011795,6.00295648,167.74,167.7,0.04452317]
[1747704011993,0.04325648,167.74,167.7,0.04452317]
[1747704012204,63.74,167.73,167.7,0.04452317]
[1747704012398,0.04325648,167.74,167.73,5.9599]
[1747704012599,67.8192,167.83,167.71,80.07891489]
[1747704012903,69.6954,167.86,167.71,80.07891489]
[1747704013096,63.74,167.86,167.71,80.07891489]
[1747704013396,63.74,167.86,167.79,5.9577]
[1747704013586,0.03817044,167.84,167.81,0.04065026]
[1747704014194,5.99427044,167.84,167.81,0.04065026]
[1747704015396,0.03817044,167.84,167.81,0.04065026]
[1747704015904,0.03817044,167.84,167.83,5.9564]
[1747704016199,63.76,167.89,167.81,63.78065026]
[1747704016402,63.76,167.89,167.86,5.955]
[1747704016597,69.6935,167.92,167.86,5.955]
[1747704016903,63.74,167.92,167.85,63.74]
[1747704017103,5.9525,167.94,167.85,63.74]
[1747704017300,0.04579997,167.91,167.88,0.0389369]
[1747704017496,0.04332515,167.91,167.88,0.03964554]
[1747704022912,0.04332515,167.91,167.89,63.72]
[1747704023212,63.72,167.99,167.9,3.8038]
[1747704023603,5.9511,167.98,167.9,3.8038]
[1747704023804,63.72,167.99,167.9,3.8038]
[1747704024001,1.9474,168.01,167.91,1.9399]
[1747704024204,0.04306871,167.96,167.93,0.04074852]
[1747704024407,0.04303842,167.96,167.93,63.76074852]
[1747704024613,0.04303842,167.96,167.93,0.04074852]
[1747704025810,5.9525,167.94,167.93,0.04074852]
[1747704026216,0.04303842,167.96,167.93,0.04074852]
[1747704026617,5.99513842,167.96,167.93,0.04074852]
[1747704026812,0.04303842,167.96,167.93,0.04074852]
[1747704027322,5.9525,167.94,167.93,0.04074852]
[1747704027524,0.04303842,167.96,167.93,0.04074852]
[1747704027920,5.9524,167.95,167.93,0.04074852]
[1747704028122,0.04303842,167.96,167.93,0.04074852]
[1747704028518,0.04303842,167.96,167.93,5.99354852]
[1747704029726,0.04303842,167.96,167.94,5.9524]
[1747704030930,0.04303842,167.96,167.95,5.9521]
[1747704031126,0.04303842,167.96,167.93,63.74074852]
[1747704031325,0.04303842,167.96,167.93,0.04074852]
[1747704031527,5.9525,167.94,167.93,0.04074852]
[1747704032232,5.9522,167.95,167.93,0.04074852]
[1747704032727,0.04303842,167.96,167.93,0.04074852]
[1747704033832,0.04303842,167.96,167.93,5.99344852]
[1747704034330,0.04303842,167.96,167.94,5.9524]
[1747704034536,0.04303842,167.96,167.93,0.04074852]
[1747704034833,0.04303842,167.96,167.94,5.9522]
[1747704035334,0.04303842,167.96,167.94,5.9525]
[1747704036935,0.04303842,167.96,167.93,0.04074852]
[1747704037324,0.04303842,167.96,167.95,5.9521]
[1747704037726,63.64,168.13,167.95,69.6]
[1747704037927,2.0087,168.13,167.97,10.24971489]
[1747704038536,5.9471,168.1,168.04,5.9489]
[1747704038736,0.03828489,168.09,168.05,0.03772703]
[1747704039237,0.03828489,168.09,168.05,5.98622703]
[1747704039530,0.03828489,168.09,168.05,0.03772703]
[1747704040536,0.03828489,168.09,168.05,5.98612703]
[1747704040832,0.03828489,168.09,168.05,0.03772703]
[1747704041839,578.2,168.2,168.06,63.62]
[1747704042027,63.62,168.2,168.06,63.62]
[1747704042229,67.5792,168.23,168.09,10.24971489]
[1747704042430,67.5792,168.23,168.1,65.5721]
[1747704042827,0.04021688,168.18,168.15,0.042554]
[1747704046742,5.9447,168.17,168.15,0.042554]
[1747704047535,5.98421688,168.18,168.15,0.042554]
[1747704047736,0.04021688,168.18,168.15,0.042554]
[1747704048138,63.58,168.27,168.16,63.58]
[1747704048333,63.58,168.27,168.17,4.0547]
[1747704048837,63.58,168.27,168.15,63.58]
[1747704049144,5.944,168.18,168.13,7.9086]
[1747704049337,0.03747276,168.17,168.14,0.04052982]
[1747704049540,0.04279807,168.17,168.14,0.04559075]
[1747704050046,5.9451,168.15,168.14,0.04559075]
[1747704050343,0.04279807,168.17,168.14,0.04559075]
[1747704050744,5.9447,168.16,168.14,0.04559075]
[1747704051341,5.945,168.15,168.14,0.04559075]
[1747704051551,0.04279807,168.17,168.14,0.04559075]
[1747704052243,63.56,168.26,168.14,0.04559075]
[1747704052438,63.56,168.26,168.13,63.58]
[1747704053146,0.03768856,168.21,168.18,0.04361781]
[1747704054146,0.03768856,168.21,168.2,5.9433]
[1747704055343,0.03768856,168.21,168.19,5.9436]
[1747704055646,0.03768856,168.21,168.18,0.04361781]
[1747704056848,0.03768856,168.21,168.18,2.07641781]
[1747704057047,63.56,168.3,168.18,2.07641781]
[1747704057347,63.56,168.3,168.18,2.0328]
[1747704057542,5.9412,168.26,168.22,5.9425]
[1747704057738,5.9412,168.26,168.18,2.0328]
[1747704058050,0.03809947,168.24,168.2,0.0401626]
[1747704058752,0.03809947,168.24,168.21,63.54]
[1747704059442,0.03809947,168.24,168.23,5.9422]
[1747704060545,0.03809947,168.24,168.21,63.54]
[1747704061146,0.03809947,168.24,168.2,0.0401626]
[1747704061352,0.03809947,168.24,168.2,63.5601626]
[1747704061544,0.03809947,168.24,168.2,69.5034626]
[1747704061852,0.03809947,168.24,168.2,63.5601626]
[1747704062156,0.03809947,168.24,168.21,5.9429]
[1747704062556,0.03809947,168.24,168.2,63.5601626]
[1747704063047,0.03809947,168.24,168.2,69.5031626]
[1747704063757,0.03809947,168.24,168.21,5.9428]
[1747704064660,0.03809947,168.24,168.2,69.5033626]
[1747704065051,0.03809947,168.24,168.2,63.5601626]
[1747704065360,0.03809947,168.24,168.2,69.5033626]
[1747704065361,5.98009947,168.24,168.2,69.5033626]
[1747704065659,0.03809947,168.24,168.2,63.5601626]
[1747704067256,0.03809947,168.24,168.21,5.9429]
[1747704068665,5.97999947,168.24,168.2,69.5033626]
[1747704068860,0.03809947,168.24,168.2,69.5033626]
[1747704069660,0.03809947,168.24,168.2,0.0401626]
[1747704070963,5.9427,168.22,168.2,0.0401626]
[1747704071460,0.03809947,168.24,168.2,0.0401626]
[1747704072557,0.03809947,168.24,168.21,63.52]
[1747704072862,0.03809947,168.24,168.23,5.9422]
[1747704073962,0.03809947,168.24,168.2,0.0401626]
[1747704075566,5.9429,168.21,168.2,0.0401626]
[1747704078958,63.52,168.21,168.12,63.52]
[1747704079965,0.03837825,168.18,168.15,0.04395904]
[1747704080267,5.945,168.16,168.15,0.04395904]
[1747704080763,0.03837825,168.18,168.15,0.04395904]
[1747704082967,5.98237825,168.18,168.15,0.04395904]
[1747704083468,0.03837825,168.18,168.15,0.04395904]
[1747704085970,5.9443,168.17,168.15,0.04395904]
[1747704086572,0.03837825,168.18,168.15,0.04395904]
[1747704087370,0.03837825,168.18,168.16,5.9446]
[1747704088270,0.03837825,168.18,168.15,5.98895904]
[1747704088473,0.03837825,168.18,168.15,0.04395904]
[1747704089473,0.03837825,168.18,168.17,5.9443]
[1747704089972,81.51095773,168.32,168.17,69.48]
[1747704089973,14.76124284,168.32,168.17,69.48]
[1747704090171,14.76124284,168.32,168.19,10.24971489]
[1747704090565,5.9762,168.34,168.19,10.24971489]
[1747704090871,11.9146,168.34,168.2,2.12171739]
[1747704091174,0.04343938,168.29,168.25,0.04452089]
[1747704091375,0.04343938,168.29,168.25,64.70452089]
[1747704091675,0.04343938,168.29,168.27,5.9405]
[1747704091877,0.04343938,168.29,168.25,64.70452089]
[1747704093375,0.04343938,168.29,168.28,5.9405]
[1747704094280,3.938e-05,168.29,168.28,5.9405]
[1747704097874,3.8865,168.38,168.33,5.9386]
[1747704098374,64.66,168.4,168.33,5.9386]
[1747704098981,0.04556457,168.38,168.35,0.03921732]
[1747704099879,0.04556457,168.38,168.36,64.64]
[1747704100276,0.04556457,168.38,168.37,5.9373]
[1747704100578,5.9249,168.47,168.36,64.64]
[1747704100781,5.9342,168.46,168.4,5.9361]
[1747704100983,5.9342,168.46,168.4,70.5761]
[1747704101276,1.9175,168.47,168.42,5.9352]
[1747704101482,1.9175,168.47,168.4,64.64]
[1747704101786,0.04531294,168.46,168.43,0.04436549]
[1747704102576,5.9345,168.45,168.43,0.04436549]
[1747704103382,5.9348,168.44,168.43,0.04436549]
[1747704103576,5.98531294,168.46,168.24,10.24971489]
[1747704103880,5.9361,168.41,168.35,5.9377]
[1747704104079,66.5375,168.47,168.33,64.62]
[1747704104270,66.5375,168.47,168.34,1.9299]
[1747704104471,0.04253245,168.42,168.39,5.98039817]
[1747704104675,0.04253245,168.42,168.39,0.04419817]
[1747704108487,0.04253245,168.42,168.41,5.9359]
[1747704108688,0.04253245,168.42,168.39,0.04419817]
[1747704108991,0.04253245,168.42,168.41,5.9359]
[1747704109893,0.04253245,168.42,168.4,5.9362]
[1747704110096,0.04253245,168.42,168.39,0.04419817]
[1747704110393,0.04253245,168.42,168.39,5.98069817]
[1747704110596,0.04253245,168.42,168.39,0.04419817]
[1747704111084,0.04253245,168.42,168.39,5.98049817]
[1747704115293,0.04253245,168.42,168.39,0.04419817]
[1747704116986,0.04253245,168.42,168.39,5.98069817]
[1747704117289,0.04253245,168.42,168.39,0.04419817]
[1747704120398,0.04253245,168.42,168.39,5.98049817]
[1747704120697,0.04253245,168.42,168.39,0.04419817]
[1747704121291,5.97833245,168.42,168.39,0.04419817]
[1747704121493,0.04253245,168.42,168.39,0.04419817]
[1747704121990,5.9362,168.4,168.39,0.04419817]
[1747704122198,3.9581,168.41,168.33,5.9386]
[1747704123007,3.9581,168.41,168.32,71.239]
[1747704123294,0.04523335,168.38,168.35,0.04181642]
[1747704123804,5.9376,168.37,168.35,0.04181642]
[1747704124099,0.04523335,168.38,168.35,0.04181642]
[1747704124903,5.98253335,168.38,168.35,0.04181642]
[1747704125104,0.04523335,168.38,168.35,0.04181642]
[1747704125597,5.9376,168.36,168.35,0.04181642]
[1747704129703,5.9391,168.32,168.28,65.3]
[1747704130403,65.3,168.38,168.28,65.3]
[1747704130800,0.04163059,168.35,168.31,0.04226013]
[1747704131107,5.9384,168.34,168.31,0.04226013]
[1747704131909,5.9387,168.33,168.31,0.04226013]
[1747704134802,5.9384,168.34,168.31,0.04226013]
[1747704135508,5.9388,168.33,168.31,0.04226013]
[1747704136014,75.0998,168.34,168.31,0.04226013]
[1747704136705,5.9387,168.33,168.31,0.04226013]
[1747704137406,75.0997,168.34,168.31,0.04226013]
[1747704138201,5.9387,168.33,168.31,0.04226013]
[1747704138807,5.9391,168.32,168.31,0.04226013]
[1747704139210,5.9408,168.28,168.24,65.34]
[1747704139509,5.9408,168.28,168.23,8.15949135]
[1747704140010,5.9408,168.28,168.23,2.21759135]
[1747704140206,0.03837069,168.27,168.24,0.04501586]
[1747704141411,0.03837069,168.27,168.24,5.98681586]
[1747704141707,0.03837069,168.27,168.24,0.04501586]
[1747704142107,65.34,168.26,168.23,2.21759135]
[1747704142307,69.2709,168.26,168.2,2.95741486]
[1747704142603,69.2709,168.26,168.18,2.22772073]
[1747704142912,75.62674946,168.26,168.18,2.22772073]
[1747704143104,5.9429,168.21,168.2,0.04026699]
[1747704143304,71.2829,168.21,168.2,0.04026699]
[1747704143907,65.34,168.21,168.18,2.22772073]
[1747704144507,5.9433,168.2,168.18,2.22772073]
[1747704146009,5.9436,168.19,168.18,2.22772073]
[1747704146315,5.9436,168.19,168.17,0.04492851]
[1747704146316,65.34,168.21,168.17,0.04492851]
[1747704146810,5.9436,168.2,168.17,0.04492851]
[1747704147616,5.9438,168.19,168.17,0.04492851]
[1747704147819,65.34,168.21,168.17,0.04492851]
[1747704148214,5.9436,168.2,168.17,0.04492851]
[1747704148415,65.34,168.21,168.17,0.04492851]
[1747704148815,5.9435,168.2,168.17,0.04492851]
[1747704149017,65.34,168.21,168.17,0.04492851]
[1747704150421,0.04119943,168.22,168.17,0.04492851]
[1747704151015,0.04119943,168.22,168.17,5.98922851]
[1747704151320,0.04119943,168.22,168.17,0.04492851]
[1747704151523,0.04119943,168.22,168.18,5.9437]
[1747704151715,0.04119943,168.22,168.17,0.04492851]
[1747704152116,0.04119943,168.22,168.18,5.944]
[1747704152727,0.04119943,168.22,168.17,5.98922851]
[1747704154024,0.04119943,168.22,168.17,0.04492851]
[1747704155223,65.5,168.21,168.17,0.04492851]
[1747704156220,0.04119943,168.22,168.17,0.04492851]
[1747704156431,0.04119943,168.22,168.21,5.9429]
[1747704156726,65.5,168.27,168.18,71.4856]
[1747704157425,65.5,168.27,168.24,5.9416]
[1747704157625,0.04160185,168.27,168.24,5.98176684]
[1747704157822,0.04160185,168.27,168.24,0.04016684]
[1747704159325,0.04160185,168.27,168.25,5.9412]
[1747704162223,0.04160185,168.27,168.25,5.9415]
[1747704164026,0.04160185,168.27,168.26,5.9412]
[1747704165127,0.04160185,168.27,168.25,1.9761]
[1747704165625,0.04160185,168.27,168.24,0.04016684]
[1747704166928,65.52160185,168.27,168.24,0.04016684]
[1747704167728,5.9415,168.25,168.24,0.04016684]
[1747704168625,5.9413,168.26,168.24,0.04016684]
[1747704169820,65.52160185,168.27,168.24,0.04016684]
[1747704172529,0.04160185,168.27,168.24,0.04016684]
[1747704172935,0.04160185,168.27,168.25,5.9412]
[1747704173131,0.04160185,168.27,168.24,0.04016684]
[1747704174036,0.04160185,168.27,168.24,5.98176684]
[1747704174235,0.04160185,168.27,168.24,0.04016684]
[1747704175638,0.04160185,168.27,168.26,5.9412]
[1747704178534,0.04160185,168.27,168.24,5.98196684]
[1747704178731,0.04160185,168.27,168.24,0.04016684]
[1747704180348,0.04160185,168.27,168.25,5.9415]
[1747704180644,0.04160185,168.27,168.24,0.04016684]
[1747704181947,0.04160185,168.27,168.25,5.9415]
[1747704182250,0.04160185,168.27,168.24,0.04016684]
[1747704182551,5.98250185,168.27,168.24,0.04016684]
[1747704183046,0.04160185,168.27,168.24,0.04016684]
[1747704183253,5.9415,168.25,168.24,0.04016684]
[1747704185052,64.48160185,168.27,168.24,0.04016684]
[1747704185350,0.04160185,168.27,168.24,0.04016684]
[1747704186152,0.04160185,168.27,168.25,5.9415]
[1747704186354,0.04160185,168.27,168.24,0.04016684]
[1747704187653,0.04160185,168.27,168.25,2.07677948]
[1747704187949,0.04160185,168.27,168.24,0.04016684]
[1747704188151,0.04160185,168.27,168.25,2.07665653]
[1747704188348,0.04160185,168.27,168.24,0.04016684]
[1747704189454,0.04160185,168.27,168.26,5.9412]
[1747704189755,0.04160185,168.27,168.26,2.07779617]
[1747704189955,0.04160185,168.27,168.26,2.07765325]
[1747704191057,0.04160185,168.27,168.26,8.01885325]
[1747704191856,0.04160185,168.27,168.26,8.02030677]
[1747704193247,2.0355,168.34,168.28,5.9402]
[1747704193453,2.0355,168.34,168.29,2.07910677]
[1747704193655,2.0355,168.34,168.26,5.9411]
[1747704193855,2.0355,168.34,168.27,2.07930908]
[1747704194050,2.0355,168.34,168.28,2.07930908]
[1747704194255,5.9401,168.3,168.29,0.04485005]
[1747704194455,0.04128567,168.31,168.28,0.04085956]
[1747704194854,5.9401,168.29,168.28,0.04085956]
[1747704195855,64.44,168.3,168.18,66.4322]
[1747704196047,1.9269,168.29,168.2,2.08405686]
[1747704196248,66.3669,168.29,168.21,2.08405686]
[1747704196458,5.9408,168.28,168.23,5.9421]
[1747704196651,66.3669,168.29,168.24,2.08405686]
[1747704196849,0.03925262,168.28,168.25,2.12617516]
[1747704197050,0.03925262,168.28,168.25,0.0421183]
[1747704197558,5.9412,168.26,168.25,0.0421183]
[1747704197752,5.9412,168.26,168.25,2.12786655]
[1747704199259,5.9409,168.27,168.25,2.12786655]
[1747704199460,0.03925262,168.28,168.25,0.0421183]
[1747704200761,5.9412,168.26,168.25,0.0421183]
[1747704200961,0.03925262,168.28,168.25,2.12998239]
[1747704201159,64.44,168.36,168.26,66.52786409]
[1747704201358,64.44,168.36,168.27,2.08786409]
[1747704201660,5.9385,168.34,168.29,5.9399]
[1747704201856,5.9385,168.34,168.3,2.08661819]
[1747704202058,5.9385,168.34,168.31,2.08661819]
[1747704202261,0.03758404,168.33,168.32,2.08661819]
[1747704203764,5.97628404,168.33,168.32,2.08661819]
[1747704203967,0.03758404,168.33,168.3,0.04463595]
[1747704205464,5.9393,168.32,168.3,0.04463595]
[1747704205969,64.44,168.32,168.3,0.04463595]
[1747704206166,5.9394,168.31,168.3,0.04463595]
[1747704206559,5.9394,168.31,168.3,3.595e-05]
[1747704206759,66.4659,168.32,168.23,2.2377822]
[1747704206966,66.4659,168.32,168.24,4.19951198]
[1747704207167,66.4659,168.32,168.25,2.08771019]
[1747704207464,6.35551848,168.31,168.24,2.11180179]
[1747704207664,0.04541703,168.29,168.26,0.04182267]
[1747704207862,5.9408,168.27,168.26,0.04182267]
[1747704208264,0.04541703,168.29,168.26,2.12995122]
[1747704208464,0.04541703,168.29,168.27,2.08812855]
[1747704208671,0.04541703,168.29,168.28,2.08812855]
[1747704208862,0.04541703,168.29,168.28,2.0875846]
[1747704209069,5.98581703,168.29,168.28,2.08760443]
[1747704209468,0.04541703,168.29,168.28,2.08760443]
[1747704210874,0.04541703,168.29,168.28,2.08847565]
[1747704211774,0.04541703,168.29,168.28,8.02897565]
[1747704216181,0.04541703,168.29,168.28,8.03044376]
[1747704216385,0.04541703,168.29,168.28,10.14462348]
[1747704216779,0.04541703,168.29,168.28,8.05467972]
[1747704216977,0.04541703,168.29,168.28,10.14417163]
[1747704218482,0.04541703,168.29,168.28,10.14698003]
[1747704220585,0.04541703,168.29,168.28,8.03280031]
[1747704222280,0.04541703,168.29,168.28,8.03371458]
[1747704223988,0.04541703,168.29,168.28,10.14851652]
[1747704224784,0.04541703,168.29,168.28,4.20801652]
[1747704226089,0.04541703,168.29,168.28,10.14976631]
[1747704227088,0.04541703,168.29,168.28,10.15087129]
[1747704227991,0.04541703,168.29,168.28,8.03606935]
[1747704229381,5.9378,168.36,168.32,5.9389]
[1747704229579,84.67073259,168.45,168.33,2.09556935]
[1747704229777,150.45343259,168.45,168.34,2.09556935]
[1747704229984,150.45343259,168.45,168.35,65.79556935]
[1747704229985,80.46922557,168.45,168.35,65.79556935]
[1747704230177,80.46922557,168.45,168.36,65.79556935]
[1747704230178,14.68652557,168.45,168.36,65.79556935]
[1747704230383,0.04291629,168.42,168.41,5.9359]
[1747704230682,0.04291629,168.42,168.41,8.03146935]
[1747704231797,65.7827,168.51,168.45,5.9343]
[1747704232091,65.7827,168.51,168.42,2.11790521]
[1747704232397,65.7827,168.51,168.47,5.9338]
[1747704232791,65.82027503,168.51,168.47,0.04322552]
[1747704232984,63.73757503,168.51,168.47,0.04322552]
[1747704233491,0.03757503,168.51,168.47,0.04322552]
[1747704234192,0.03757503,168.51,168.47,2.02032552]
[1747704234393,0.03757503,168.51,168.5,5.9327]
[1747704235097,0.03757503,168.51,168.49,5.933]
[1747704235299,0.03757503,168.51,168.49,69.593]
[1747704235598,63.66,168.61,168.49,63.66]
[1747704235896,63.66,168.61,168.51,6.34377884]
[1747704236494,0.03922173,168.58,168.54,5.97530957]
[1747704238104,0.03922173,168.58,168.54,0.04430957]
[1747704238306,5.9304,168.57,168.54,0.04430957]
[1747704238509,0.03922173,168.58,168.54,0.04430957]
[1747704238811,5.931,168.55,168.54,0.04430957]
[1747704239715,69.5706,168.57,168.54,0.04430957]
[1747704239902,63.64,168.57,168.54,0.04430957]
[1747704240398,5.9308,168.56,168.54,0.04430957]
[1747704240611,63.64,168.57,168.54,0.04430957]
[1747704240912,5.931,168.55,168.54,0.04430957]
[1747704241210,63.64,168.57,168.54,0.04430957]
[1747704241606,5.9306,168.56,168.54,0.04430957]
[1747704241808,63.64,168.57,168.54,0.04430957]
[1747704242809,0.03922173,168.58,168.54,0.04430957]
[1747704243507,0.03922173,168.58,168.54,5.97560957]
[1747704243713,0.03922173,168.58,168.54,0.04430957]
[1747704244720,0.03922173,168.58,168.55,5.9307]
[1747704245015,0.03922173,168.58,168.54,0.04430957]
[1747704245418,0.03922173,168.58,168.54,5.97560957]
[1747704246114,0.03922173,168.58,168.55,5.9308]
[1747704246416,0.03922173,168.58,168.55,7.8282]
[1747704247018,0.03922173,168.58,168.55,1.8974]
[1747704247619,0.03922173,168.58,168.56,63.66]
[1747704248211,0.03922173,168.58,168.57,5.9303]
[1747704248815,0.03922173,168.58,168.56,69.5906]
[1747704249013,0.03922173,168.58,168.56,63.66]
[1747704250217,0.03922173,168.58,168.57,5.9303]
[1747704252121,0.03922173,168.58,168.56,63.66]
[1747704252421,5.9303,168.57,168.54,0.04430957]
[1747704252615,0.03922173,168.58,168.54,0.04430957]
[1747704252818,63.67922173,168.58,168.54,0.04430957]
[1747704253022,5.931,168.55,168.54,0.04430957]
[1747704255321,5.94,168.55,168.45,63.64]
[1747704255518,63.64,168.54,168.44,63.64]
[1747704255824,69.5717,168.53,168.44,63.64]
[1747704256017,5.9317,168.53,168.44,63.64]
[1747704256222,0.04368856,168.5,168.47,0.04222318]
[1747704256819,0.04368856,168.5,168.47,5.97572318]
[1747704257329,0.04368856,168.5,168.47,0.04222318]
[1747704260024,63.64,168.49,168.47,0.04222318]
[1747704260227,0.04368856,168.5,168.47,0.04222318]
[1747704263821,0.04368856,168.5,168.47,5.97572318]
[1747704264026,0.04368856,168.5,168.47,0.04222318]
[1747704264625,0.04368856,168.5,168.49,5.9331]
[1747704265332,63.66,168.59,168.53,5.9316]
[1747704265626,63.66,168.59,168.48,70.00201458]
[1747704266027,5.9307,168.56,168.51,5.9321]
[1747704266328,0.04370364,168.55,168.52,0.03773238]
[1747704266728,5.97470364,168.55,168.52,0.03773238]
[1747704268130,0.04370364,168.55,168.52,0.03773238]
[1747704268923,0.04370364,168.55,168.52,5.96953238]
[1747704269325,0.04370364,168.55,168.52,0.03773238]
[1747704270029,0.04370364,168.55,168.53,5.9317]
[1747704270229,0.04370364,168.55,168.52,0.03773238]
[1747704272430,0.04370364,168.55,168.52,5.96973238]
[1747704272626,0.04370364,168.55,168.52,0.03773238]
[1747704273421,0.04370364,168.55,168.53,5.9314]
[1747704273825,0.04370364,168.55,168.52,0.03773238]
[1747704274522,63.62370364,168.55,168.52,0.03773238]
[1747704274739,5.9325,168.51,168.46,8.1718822]
[1747704274939,5.9325,168.51,168.47,2.08781404]
[1747704275231,2.0817,168.54,168.48,2.08781404]
[1747704275431,2.0817,168.54,168.46,2.2377822]
[1747704275432,2.0817,168.54,168.49,2.08781404]
[1747704275633,2.0817,168.54,168.5,2.08781404]
[1747704275832,2.11928716,168.54,168.51,2.08781404]
[1747704276028,2.11928716,168.54,168.52,2.08781404]
[1747704276228,0.03758716,168.54,168.5,5.97778813]
[1747704276429,0.03758716,168.54,168.51,2.08931856]
[1747704276635,0.03758716,168.54,168.52,2.08931856]
[1747704276933,0.03758716,168.54,168.53,2.09024832]
[1747704277529,5.96888716,168.54,168.53,2.09024832]
[1747704277731,0.03758716,168.54,168.5,0.04508813]
[1747704277933,0.03758716,168.54,168.51,2.09052506]
[1747704278230,5.9319,168.53,168.52,2.09052506]
[1747704278632,5.9319,168.53,168.5,0.04508813]
[1747704278836,5.9319,168.53,168.51,2.09119892]
[1747704279030,5.9319,168.53,168.5,0.04508813]